[Event "Early-Titled-Tuesday-Blitz-October-03-2023"]
[Site "Chess.com"]
[Date "2023.10.03"]
[Round "4"]
[White "Iball95"]
[Black "shimastream"]
[Result "0-1"]
[WhiteElo "2766"]
[BlackElo "2968"]
[TimeControl "180+1"]
[EndTime "8:40:41 PDT"]
[Termination "shimastream won by resignation"]

1. e4 {[%clk 0:03:00.2]} 1... c5 {[%clk 0:02:53.2]} 2. Nf3 {[%clk 0:03:00.8]}
2... e6 {[%clk 0:02:52.2]} 3. Nc3 {[%clk 0:03:01.2]} 3... a6 {[%clk 0:02:51.7]}
4. d4 {[%clk 0:03:01.6]} 4... cxd4 {[%clk 0:02:51.8]} 5. Nxd4 {[%clk 0:03:02.5]}
5... Qc7 {[%clk 0:02:52.1]} 6. Bd3 {[%clk 0:03:03]} 6... Bc5 {[%clk 0:02:50.8]}
7. Nb3 {[%clk 0:03:02.5]} 7... Be7 {[%clk 0:02:46.3]} 8. O-O {[%clk 0:03:02.9]}
8... Nf6 {[%clk 0:02:46]} 9. Re1 {[%clk 0:03:02.2]} 9... d6 {[%clk 0:02:45.9]}
10. a4 {[%clk 0:03:01.2]} 10... b6 {[%clk 0:02:44.1]} 11. Qf3 {[%clk 0:02:47]}
11... Bb7 {[%clk 0:02:35]} 12. Qg3 {[%clk 0:02:46.2]} 12... O-O {[%clk
0:02:35.4]} 13. Bh6 {[%clk 0:02:43.4]} 13... Ne8 {[%clk 0:02:34.5]} 14. Rad1
{[%clk 0:02:32.7]} 14... Nd7 {[%clk 0:02:33.9]} 15. h4 {[%clk 0:02:16.8]} 15...
Kh8 {[%clk 0:02:29.9]} 16. Bg5 {[%clk 0:02:16.6]} 16... Nef6 {[%clk 0:02:28.8]}
17. Nd2 {[%clk 0:01:52.9]} 17... Rac8 {[%clk 0:02:12.2]} 18. Nc4 {[%clk
0:01:49.6]} 18... Ne5 {[%clk 0:02:06.4]} 19. Nxe5 {[%clk 0:01:49.5]} 19... dxe5
{[%clk 0:02:07.3]} 20. Nb1 {[%clk 0:01:41.4]} 20... h6 {[%clk 0:02:03.5]} 21.
Bd2 {[%clk 0:01:26.8]} 21... Nh5 {[%clk 0:02:01.1]} 22. Qg4 {[%clk 0:01:25.2]}
22... Nf4 {[%clk 0:02:01.1]} 23. Bxf4 {[%clk 0:01:21.4]} 23... exf4 {[%clk
0:02:01.2]} 24. e5 {[%clk 0:01:21.4]} 24... f3 {[%clk 0:01:48.8]} 25. g3 {[%clk
0:01:17]} 25... Rfd8 {[%clk 0:01:21.8]} 26. Nd2 {[%clk 0:01:16.1]} 26... Rd5
{[%clk 0:01:15.5]} 27. Nxf3 {[%clk 0:01:05.3]} 27... Rd7 {[%clk 0:00:54.4]} 28.
c3 {[%clk 0:00:54.5]} 28... Rcd8 {[%clk 0:00:52.7]} 29. Be2 {[%clk 0:00:54.2]}
29... Qc6 {[%clk 0:00:50.2]} 30. Qf4 {[%clk 0:00:51]} 30... Kg8 {[%clk
0:00:49.7]} 31. Rxd7 {[%clk 0:00:48.1]} 31... Rxd7 {[%clk 0:00:49.7]} 32. Rd1
{[%clk 0:00:49]} 32... Rxd1+ {[%clk 0:00:38.8]} 33. Bxd1 {[%clk 0:00:49.9]}
33... Qd5 {[%clk 0:00:39.7]} 34. Qd4 {[%clk 0:00:42.7]} 34... Qc6 {[%clk
0:00:31.4]} 35. Kh2 {[%clk 0:00:41.1]} 35... Kf8 {[%clk 0:00:29.7]} 36. Be2
{[%clk 0:00:37.3]} 36... Ke8 {[%clk 0:00:28.8]} 37. Kg1 {[%clk 0:00:37.5]} 37...
Bc5 {[%clk 0:00:28.4]} 38. Qg4 {[%clk 0:00:35.6]} 38... Kf8 {[%clk 0:00:28.2]}
39. Kg2 {[%clk 0:00:33.4]} 39... Qd5 {[%clk 0:00:28]} 40. Qf4 {[%clk 0:00:29.5]}
40... Qb3 {[%clk 0:00:24.6]} 41. Qd2 {[%clk 0:00:25.6]} 41... Qxa4 {[%clk
0:00:24.8]} 42. b4 {[%clk 0:00:20.6]} 42... Be7 {[%clk 0:00:22.2]} 43. g4 {[%clk
0:00:21.2]} 43... Qc6 {[%clk 0:00:21.3]} 44. Kg3 {[%clk 0:00:21.7]} 44... a5
{[%clk 0:00:18.2]} 45. bxa5 {[%clk 0:00:18.6]} 45... bxa5 {[%clk 0:00:19.1]} 46.
Qd4 {[%clk 0:00:14.1]} 46... a4 {[%clk 0:00:18.2]} 47. Qa7 {[%clk 0:00:14.7]}
47... a3 {[%clk 0:00:17.2]} 48. g5 {[%clk 0:00:13.5]} 48... h5 {[%clk
0:00:15.1]} 49. Kf4 {[%clk 0:00:12.6]} 49... Qe4+ {[%clk 0:00:10.6]} 50. Kg3
{[%clk 0:00:12.7]} 50... g6 {[%clk 0:00:11.5]} 51. Bd1 {[%clk 0:00:10.9]} 51...
Qg4+ {[%clk 0:00:09.9]} 52. Kh2 {[%clk 0:00:11.3]} 52... Bxf3 {[%clk 0:00:10.4]}
53. Qa8+ {[%clk 0:00:08.7]} 53... Bxa8 {[%clk 0:00:06.9]} 54. Bxg4 {[%clk
0:00:09.6]} 54... hxg4 {[%clk 0:00:07.5]} 55. h5 {[%clk 0:00:10.5]} 55... a2
{[%clk 0:00:07.8]} 56. h6 {[%clk 0:00:11.4]} 56... a1=Q {[%clk 0:00:07.8]} 0-1

[Event "Early-Titled-Tuesday-Blitz-October-03-2023"]
[Site "Chess.com"]
[Date "2023.10.03"]
[Round "4"]
[White "Giorno"]
[Black "FMVolodymyrSakun"]
[Result "1/2-1/2"]
[WhiteElo "2513"]
[BlackElo "2659"]
[TimeControl "180+1"]
[EndTime "8:40:42 PDT"]
[Termination "Game drawn - insufficient material"]

1. d4 {[%clk 0:03:00.9]} 1... e6 {[%clk 0:02:59.6]} 2. Nf3 {[%clk 0:02:55.5]}
2... d5 {[%clk 0:02:59.7]} 3. Bf4 {[%clk 0:02:54.9]} 3... Nf6 {[%clk 0:02:58.4]}
4. e3 {[%clk 0:02:53.4]} 4... c5 {[%clk 0:02:58.6]} 5. Nbd2 {[%clk 0:02:53]}
5... Nc6 {[%clk 0:02:54]} 6. c3 {[%clk 0:02:52.3]} 6... Bd6 {[%clk 0:02:52.4]}
7. Bg3 {[%clk 0:02:48.1]} 7... O-O {[%clk 0:02:51.9]} 8. Bd3 {[%clk 0:02:46.2]}
8... b6 {[%clk 0:02:46.2]} 9. O-O {[%clk 0:02:38]} 9... Bxg3 {[%clk 0:02:44.2]}
10. hxg3 {[%clk 0:02:35.2]} 10... Bb7 {[%clk 0:02:44.3]} 11. Qe2 {[%clk
0:02:33.6]} 11... Re8 {[%clk 0:02:30.5]} 12. dxc5 {[%clk 0:02:30.8]} 12... bxc5
{[%clk 0:02:24.2]} 13. e4 {[%clk 0:02:29.8]} 13... Nd7 {[%clk 0:02:14.1]} 14.
Rfe1 {[%clk 0:02:21.7]} 14... c4 {[%clk 0:02:05.9]} 15. Bc2 {[%clk 0:02:18.4]}
15... Nc5 {[%clk 0:01:51.8]} 16. b4 {[%clk 0:02:09.9]} 16... cxb3 {[%clk
0:01:49.8]} 17. axb3 {[%clk 0:02:09.6]} 17... dxe4 {[%clk 0:01:17.3]} 18. Nxe4
{[%clk 0:02:08.3]} 18... Nxe4 {[%clk 0:01:14.8]} 19. Qxe4 {[%clk 0:02:07.2]}
19... g6 {[%clk 0:01:14.5]} 20. Ne5 {[%clk 0:01:57.8]} 20... Qd6 {[%clk
0:00:49.4]} 21. Nc4 {[%clk 0:01:51]} 21... Qc7 {[%clk 0:00:46]} 22. Qh4 {[%clk
0:01:47.6]} 22... Rad8 {[%clk 0:00:42.2]} 23. Qf6 {[%clk 0:01:26.9]} 23... Qe7
{[%clk 0:00:40.1]} 24. Qxe7 {[%clk 0:01:23.9]} 24... Rxe7 {[%clk 0:00:41]} 25.
Red1 {[%clk 0:01:15.8]} 25... Red7 {[%clk 0:00:38.9]} 26. Rxd7 {[%clk
0:01:14.3]} 26... Rxd7 {[%clk 0:00:39.8]} 27. Kf1 {[%clk 0:01:09.7]} 27... Kf8
{[%clk 0:00:39.3]} 28. Ke2 {[%clk 0:01:05.5]} 28... Ke7 {[%clk 0:00:38.6]} 29.
g4 {[%clk 0:01:01.9]} 29... Kf6 {[%clk 0:00:32.6]} 30. g3 {[%clk 0:00:58.5]}
30... e5 {[%clk 0:00:28.5]} 31. f4 {[%clk 0:00:52.4]} 31... exf4 {[%clk
0:00:27.2]} 32. gxf4 {[%clk 0:00:53.3]} 32... h6 {[%clk 0:00:21.1]} 33. b4
{[%clk 0:00:40.9]} 33... a6 {[%clk 0:00:20.5]} 34. Na5 {[%clk 0:00:35.6]} 34...
Nxa5 {[%clk 0:00:19.1]} 35. Rxa5 {[%clk 0:00:36.5]} 35... Rd6 {[%clk 0:00:17.5]}
36. g5+ {[%clk 0:00:35.6]} 36... hxg5 {[%clk 0:00:17.4]} 37. fxg5+ {[%clk
0:00:36.5]} 37... Ke7 {[%clk 0:00:17.7]} 38. Bd3 {[%clk 0:00:35.3]} 38... f5
{[%clk 0:00:13.9]} 39. gxf6+ {[%clk 0:00:34.3]} 39... Kxf6 {[%clk 0:00:13.9]}
40. Ke3 {[%clk 0:00:33]} 40... Bc8 {[%clk 0:00:12.6]} 41. c4 {[%clk 0:00:27.3]}
41... g5 {[%clk 0:00:11.9]} 42. c5 {[%clk 0:00:26.9]} 42... Re6+ {[%clk
0:00:12.3]} 43. Kd4 {[%clk 0:00:25.7]} 43... g4 {[%clk 0:00:10.3]} 44. Bc4
{[%clk 0:00:25.6]} 44... Re1 {[%clk 0:00:09.3]} 45. Bxa6 {[%clk 0:00:25.3]}
45... Bf5 {[%clk 0:00:06.7]} 46. Bb7 {[%clk 0:00:23.5]} 46... g3 {[%clk
0:00:06.5]} 47. Ra2 {[%clk 0:00:21]} 47... Rd1+ {[%clk 0:00:05.6]} 48. Ke3
{[%clk 0:00:17.7]} 48... Rb1 {[%clk 0:00:05.7]} 49. Kf3 {[%clk 0:00:09.8]} 49...
Rb3+ {[%clk 0:00:05.4]} 50. Kg2 {[%clk 0:00:08.5]} 50... Ke5 {[%clk 0:00:03.9]}
51. Bf3 {[%clk 0:00:07.9]} 51... Kf4 {[%clk 0:00:03.8]} 52. Bd5 {[%clk
0:00:05.9]} 52... Rxb4 {[%clk 0:00:03.5]} 53. c6 {[%clk 0:00:05]} 53... Be4+
{[%clk 0:00:03]} 54. Bxe4 {[%clk 0:00:04.9]} 54... Rxe4 {[%clk 0:00:03.3]} 55.
Rc2 {[%clk 0:00:05.4]} 55... Re8 {[%clk 0:00:03.2]} 56. c7 {[%clk 0:00:05.7]}
56... Rc8 {[%clk 0:00:03.5]} 57. Rc3 {[%clk 0:00:06]} 57... Ke5 {[%clk
0:00:03.8]} 58. Kxg3 {[%clk 0:00:06.3]} 58... Kd6 {[%clk 0:00:04.3]} 59. Kf3
{[%clk 0:00:06.8]} 59... Rxc7 {[%clk 0:00:04.3]} 60. Rxc7 {[%clk 0:00:07.6]}
60... Kxc7 {[%clk 0:00:05.2]} 1/2-1/2

[Event "Early-Titled-Tuesday-Blitz-October-03-2023"]
[Site "Chess.com"]
[Date "2023.10.03"]
[Round "4"]
[White "masnyszachistaaa"]
[Black "ViktoriyaTarasova"]
[Result "0-1"]
[WhiteElo "2555"]
[BlackElo "2391"]
[TimeControl "180+1"]
[EndTime "8:40:42 PDT"]
[Termination "ViktoriyaTarasova won by resignation"]

1. e4 {[%clk 0:03:00.9]} 1... e5 {[%clk 0:02:52.2]} 2. Nf3 {[%clk 0:03:00.7]}
2... Nc6 {[%clk 0:02:50.1]} 3. d4 {[%clk 0:02:59.7]} 3... exd4 {[%clk 0:02:50]}
4. Bc4 {[%clk 0:02:59.4]} 4... Bc5 {[%clk 0:02:49.1]} 5. c3 {[%clk 0:02:59.2]}
5... Nf6 {[%clk 0:02:45.6]} 6. e5 {[%clk 0:02:57.3]} 6... d5 {[%clk 0:02:44.6]}
7. Bb5 {[%clk 0:02:56.6]} 7... Ne4 {[%clk 0:02:44.5]} 8. cxd4 {[%clk 0:02:56.6]}
8... Bb6 {[%clk 0:02:44.8]} 9. O-O {[%clk 0:02:55.7]} 9... O-O {[%clk
0:02:43.4]} 10. Nc3 {[%clk 0:02:55.6]} 10... Ne7 {[%clk 0:02:32.5]} 11. Qc2
{[%clk 0:02:51]} 11... f5 {[%clk 0:02:15]} 12. exf6 {[%clk 0:02:44.3]} 12...
Nxf6 {[%clk 0:02:14.8]} 13. Re1 {[%clk 0:02:37]} 13... Bf5 {[%clk 0:02:11.6]}
14. Bd3 {[%clk 0:02:25.9]} 14... Bxd3 {[%clk 0:02:06.9]} 15. Qxd3 {[%clk
0:02:26.8]} 15... Ng6 {[%clk 0:01:48.7]} 16. Ng5 {[%clk 0:02:17.9]} 16... Qd7
{[%clk 0:01:41.9]} 17. Bd2 {[%clk 0:01:54.7]} 17... Rfe8 {[%clk 0:01:33.2]} 18.
h3 {[%clk 0:01:15.1]} 18... Rxe1+ {[%clk 0:01:27.5]} 19. Rxe1 {[%clk 0:01:14.3]}
19... Re8 {[%clk 0:01:27.5]} 20. Rxe8+ {[%clk 0:00:59.2]} 20... Qxe8 {[%clk
0:01:25.7]} 21. Qe3 {[%clk 0:00:59.9]} 21... Qxe3 {[%clk 0:01:23.6]} 22. Bxe3
{[%clk 0:01:00.8]} 22... h6 {[%clk 0:01:15.8]} 23. Ne6 {[%clk 0:00:55.5]} 23...
c6 {[%clk 0:01:07]} 24. Ne2 {[%clk 0:00:54.3]} 24... Kf7 {[%clk 0:01:04.2]} 25.
N6f4 {[%clk 0:00:54.5]} 25... Nxf4 {[%clk 0:01:04.3]} 26. Bxf4 {[%clk
0:00:52.5]} 26... Ne4 {[%clk 0:01:02.8]} 27. Kf1 {[%clk 0:00:51.1]} 27... g5
{[%clk 0:01:01.8]} 28. Be5 {[%clk 0:00:47]} 28... Nd2+ {[%clk 0:00:51.7]} 29.
Ke1 {[%clk 0:00:46.5]} 29... Nc4 {[%clk 0:00:52.5]} 30. b3 {[%clk 0:00:44.1]}
30... Nxe5 {[%clk 0:00:49.8]} 31. dxe5 {[%clk 0:00:45]} 31... Ke6 {[%clk
0:00:49.3]} 32. f3 {[%clk 0:00:30.9]} 32... Kxe5 {[%clk 0:00:49.5]} 33. Kd2
{[%clk 0:00:30.8]} 33... c5 {[%clk 0:00:47.7]} 34. Kd3 {[%clk 0:00:26.9]} 34...
Ba5 {[%clk 0:00:47.6]} 35. g3 {[%clk 0:00:25.4]} 35... b5 {[%clk 0:00:46.8]} 36.
f4+ {[%clk 0:00:20.1]} 36... gxf4 {[%clk 0:00:46.5]} 37. gxf4+ {[%clk 0:00:21]}
37... Kf5 {[%clk 0:00:45.9]} 38. Ke3 {[%clk 0:00:21]} 38... a6 {[%clk
0:00:29.8]} 39. Ng3+ {[%clk 0:00:20.7]} 39... Ke6 {[%clk 0:00:25.9]} 40. h4
{[%clk 0:00:14.5]} 40... Bd8 {[%clk 0:00:23.6]} 41. h5 {[%clk 0:00:14.4]} 41...
Bh4 {[%clk 0:00:23.4]} 42. Ne2 {[%clk 0:00:09.2]} 42... Kf5 {[%clk 0:00:23.5]}
43. Kf3 {[%clk 0:00:07.5]} 43... d4 {[%clk 0:00:20.5]} 44. a4 {[%clk 0:00:05]}
44... Be1 {[%clk 0:00:14.5]} 45. axb5 {[%clk 0:00:04.8]} 45... axb5 {[%clk
0:00:14.5]} 46. Nc1 {[%clk 0:00:04.4]} 46... c4 {[%clk 0:00:14.1]} 47. bxc4
{[%clk 0:00:05.3]} 47... bxc4 {[%clk 0:00:14.6]} 48. Ne2 {[%clk 0:00:05.6]}
48... d3 {[%clk 0:00:08.9]} 49. Nd4+ {[%clk 0:00:06.1]} 49... Kf6 {[%clk
0:00:09]} 50. Ke3 {[%clk 0:00:05.4]} 50... d2 {[%clk 0:00:05.2]} 51. Ke2 {[%clk
0:00:05.7]} 51... c3 {[%clk 0:00:05.1]} 52. Kd1 {[%clk 0:00:02.3]} 52... Bg3
{[%clk 0:00:04.8]} 53. Ne2 {[%clk 0:00:02.3]} 53... Be1 {[%clk 0:00:04.4]} 54.
Nxc3 {[%clk 0:00:02.5]} 54... Kf5 {[%clk 0:00:04.5]} 55. Nd5 {[%clk 0:00:03]}
55... Ke4 {[%clk 0:00:04.4]} 56. Nf6+ {[%clk 0:00:02.7]} 56... Kxf4 {[%clk
0:00:04.9]} 57. Ng8 {[%clk 0:00:02.3]} 57... Kg5 {[%clk 0:00:05]} 58. Nxh6
{[%clk 0:00:02.4]} 58... Kxh6 {[%clk 0:00:05.3]} 59. Ke2 {[%clk 0:00:03.3]}
59... Kxh5 {[%clk 0:00:05.8]} 60. Kd1 {[%clk 0:00:04.2]} 60... Kg5 {[%clk
0:00:06.4]} 61. Ke2 {[%clk 0:00:05.1]} 61... Kf4 {[%clk 0:00:07.1]} 62. Kd1
{[%clk 0:00:06]} 62... Kf3 {[%clk 0:00:07.3]} 63. Kc2 {[%clk 0:00:06.5]} 63...
Ke2 {[%clk 0:00:08]} 0-1

[Event "Early-Titled-Tuesday-Blitz-October-03-2023"]
[Site "Chess.com"]
[Date "2023.10.03"]
[Round "4"]
[White "EvgenyBurmakin"]
[Black "ExchangeAB"]
[Result "1-0"]
[WhiteElo "2347"]
[BlackElo "2491"]
[TimeControl "180+1"]
[EndTime "8:40:42 PDT"]
[Termination "EvgenyBurmakin won by resignation"]

1. e4 {[%clk 0:03:00.9]} 1... c6 {[%clk 0:03:00.3]} 2. Nc3 {[%clk 0:03:00.4]}
2... d5 {[%clk 0:03:01.2]} 3. Nf3 {[%clk 0:03:00.8]} 3... Bg4 {[%clk 0:03:00.7]}
4. d4 {[%clk 0:03:00.3]} 4... dxe4 {[%clk 0:02:58.3]} 5. Nxe4 {[%clk 0:03:00]}
5... e6 {[%clk 0:02:55]} 6. Bd3 {[%clk 0:02:57.8]} 6... Nd7 {[%clk 0:02:54.5]}
7. Ng3 {[%clk 0:02:37.3]} 7... Ngf6 {[%clk 0:02:42.2]} 8. h3 {[%clk 0:02:35.9]}
8... Bxf3 {[%clk 0:02:40.3]} 9. Qxf3 {[%clk 0:02:36.8]} 9... Bd6 {[%clk
0:02:34.7]} 10. O-O {[%clk 0:02:32]} 10... Qc7 {[%clk 0:02:25.3]} 11. Nh5 {[%clk
0:02:05.1]} 11... Nxh5 {[%clk 0:02:20.3]} 12. Qxh5 {[%clk 0:02:06]} 12... Nf6
{[%clk 0:02:12.3]} 13. Qg5 {[%clk 0:02:04.3]} 13... Rg8 {[%clk 0:02:11.2]} 14.
Bd2 {[%clk 0:01:56.9]} 14... O-O-O {[%clk 0:02:09.3]} 15. Ba5 {[%clk 0:01:52.8]}
15... b6 {[%clk 0:02:09.6]} 16. Ba6+ {[%clk 0:01:51.7]} 16... Kb8 {[%clk
0:02:09.8]} 17. Bd2 {[%clk 0:01:48.7]} 17... h6 {[%clk 0:01:59.9]} 18. Qe3
{[%clk 0:01:41.4]} 18... Nd5 {[%clk 0:01:55.7]} 19. Qf3 {[%clk 0:01:41.3]} 19...
g5 {[%clk 0:01:47]} 20. Rfe1 {[%clk 0:01:07.6]} 20... Bf4 {[%clk 0:01:40.9]} 21.
Bxf4 {[%clk 0:01:03.5]} 21... Qxf4 {[%clk 0:01:39.7]} 22. Qxf4+ {[%clk
0:01:01.5]} 22... Nxf4 {[%clk 0:01:40.6]} 23. Bf1 {[%clk 0:01:00.3]} 23... Rxd4
{[%clk 0:01:39.4]} 24. Rad1 {[%clk 0:00:56.1]} 24... Rgd8 {[%clk 0:01:38.4]} 25.
Rxd4 {[%clk 0:00:51.1]} 25... Rxd4 {[%clk 0:01:39.3]} 26. g3 {[%clk 0:00:49.9]}
26... Ng6 {[%clk 0:01:38.2]} 27. Bg2 {[%clk 0:00:44.2]} 27... Kc7 {[%clk
0:01:37.1]} 28. Re2 {[%clk 0:00:44.1]} 28... a5 {[%clk 0:01:34.3]} 29. Kh2
{[%clk 0:00:42]} 29... a4 {[%clk 0:01:34.1]} 30. a3 {[%clk 0:00:40.2]} 30... b5
{[%clk 0:01:33.6]} 31. c3 {[%clk 0:00:40.1]} 31... Rd6 {[%clk 0:01:33.1]} 32.
Bf3 {[%clk 0:00:30.5]} 32... Ne7 {[%clk 0:01:32.2]} 33. Kg2 {[%clk 0:00:30]}
33... Nd5 {[%clk 0:01:30.6]} 34. Bh5 {[%clk 0:00:28.8]} 34... f6 {[%clk
0:01:26.1]} 35. Bf7 {[%clk 0:00:22.1]} 35... e5 {[%clk 0:01:25.7]} 36. Bg6
{[%clk 0:00:19.6]} 36... Nb6 {[%clk 0:01:25.7]} 37. Kf3 {[%clk 0:00:17.5]} 37...
Nc4 {[%clk 0:01:25.8]} 38. Kg4 {[%clk 0:00:17.5]} 38... Kd8 {[%clk 0:01:09.2]}
39. Kh5 {[%clk 0:00:17.1]} 39... Ke7 {[%clk 0:01:09.5]} 40. Kxh6 {[%clk
0:00:17.1]} 40... Rd1 {[%clk 0:00:57]} 41. h4 {[%clk 0:00:15]} 41... gxh4 {[%clk
0:00:57]} 42. gxh4 {[%clk 0:00:15.9]} 42... f5 {[%clk 0:00:45.4]} 43. Bxf5
{[%clk 0:00:14.2]} 43... Kf6 {[%clk 0:00:46]} 44. Be4 {[%clk 0:00:07.5]} 44...
Rg1 {[%clk 0:00:25.2]} 45. Bxc6 {[%clk 0:00:04.2]} 45... Nd6 {[%clk 0:00:25.7]}
46. Bd7 {[%clk 0:00:02.1]} 46... Nf7+ {[%clk 0:00:23.2]} 47. Kh5 {[%clk
0:00:02.1]} 47... Ke7 {[%clk 0:00:15.6]} 48. Bg4 {[%clk 0:00:02.5]} 48... Kf6
{[%clk 0:00:15.3]} 49. Re4 {[%clk 0:00:02.6]} 49... Rb1 {[%clk 0:00:14.8]} 50.
f3 {[%clk 0:00:02.7]} 50... Rxb2 {[%clk 0:00:13.9]} 51. Rb4 {[%clk 0:00:03.1]}
51... Rxb4 {[%clk 0:00:13.8]} 52. cxb4 {[%clk 0:00:04]} 52... Kg7 {[%clk
0:00:13.1]} 53. Bd7 {[%clk 0:00:04.6]} 53... Nd6 {[%clk 0:00:13.4]} 54. Bc6
{[%clk 0:00:04.4]} 54... Nc4 {[%clk 0:00:07.6]} 55. Bxb5 {[%clk 0:00:03.8]}
55... Nxa3 {[%clk 0:00:08.5]} 56. Bxa4 {[%clk 0:00:04.4]} 56... Nc2 {[%clk
0:00:08.4]} 57. b5 {[%clk 0:00:04.5]} 57... Nd4 {[%clk 0:00:07.4]} 58. b6 {[%clk
0:00:04.6]} 1-0

[Event "Early-Titled-Tuesday-Blitz-October-03-2023"]
[Site "Chess.com"]
[Date "2023.10.03"]
[Round "4"]
[White "grzechu96"]
[Black "Marcin"]
[Result "1-0"]
[WhiteElo "2662"]
[BlackElo "2503"]
[TimeControl "180+1"]
[EndTime "8:40:43 PDT"]
[Termination "grzechu96 won by resignation"]

1. e4 {[%clk 0:03:00.9]} 1... c5 {[%clk 0:02:56]} 2. Nf3 {[%clk 0:02:59.2]} 2...
e6 {[%clk 0:02:56.7]} 3. d4 {[%clk 0:02:57.7]} 3... cxd4 {[%clk 0:02:57.6]} 4.
Nxd4 {[%clk 0:02:58.2]} 4... a6 {[%clk 0:02:58.3]} 5. c4 {[%clk 0:02:51.4]} 5...
Qc7 {[%clk 0:02:56.2]} 6. Nc3 {[%clk 0:02:49.2]} 6... Nf6 {[%clk 0:02:56.7]} 7.
a3 {[%clk 0:02:49.3]} 7... d6 {[%clk 0:02:55.2]} 8. Be3 {[%clk 0:02:48.8]} 8...
Nbd7 {[%clk 0:02:55.3]} 9. f3 {[%clk 0:02:48.1]} 9... g6 {[%clk 0:02:55.4]} 10.
Rc1 {[%clk 0:02:47.2]} 10... Bg7 {[%clk 0:02:55.9]} 11. Be2 {[%clk 0:02:46]}
11... O-O {[%clk 0:02:55.8]} 12. O-O {[%clk 0:02:46.4]} 12... b6 {[%clk
0:02:55.7]} 13. b4 {[%clk 0:02:46.6]} 13... Bb7 {[%clk 0:02:55.9]} 14. Qd2
{[%clk 0:02:46.8]} 14... Rac8 {[%clk 0:02:55.1]} 15. Rfd1 {[%clk 0:02:47.1]}
15... Qb8 {[%clk 0:02:54.3]} 16. Nb3 {[%clk 0:02:40.2]} 16... Ne8 {[%clk
0:02:31.5]} 17. Bf1 {[%clk 0:02:29.3]} 17... Be5 {[%clk 0:02:19.5]} 18. Qf2
{[%clk 0:02:25.1]} 18... Nef6 {[%clk 0:01:44.6]} 19. Bd4 {[%clk 0:01:20.5]}
19... d5 {[%clk 0:01:23.6]} 20. Bxe5 {[%clk 0:01:16.5]} 20... Qxe5 {[%clk
0:01:23.7]} 21. exd5 {[%clk 0:01:00.7]} 21... exd5 {[%clk 0:01:23.6]} 22. c5
{[%clk 0:01:01.3]} 22... bxc5 {[%clk 0:01:20.8]} 23. bxc5 {[%clk 0:01:01.5]}
23... Rc7 {[%clk 0:01:07.4]} 24. Na4 {[%clk 0:00:43.8]} 24... Rfc8 {[%clk
0:01:01.7]} 25. Na5 {[%clk 0:00:39.2]} 25... Bc6 {[%clk 0:00:46.2]} 26. Nb6
{[%clk 0:00:39.4]} 26... Rb8 {[%clk 0:00:30.4]} 27. Bxa6 {[%clk 0:00:27]} 27...
h5 {[%clk 0:00:17.2]} 28. Nxc6 {[%clk 0:00:10.5]} 28... Rxc6 {[%clk 0:00:17.4]}
29. Bb5 {[%clk 0:00:11]} 29... Rc7 {[%clk 0:00:16.6]} 30. Bxd7 {[%clk
0:00:09.7]} 30... Nxd7 {[%clk 0:00:16.7]} 31. a4 {[%clk 0:00:04.2]} 31... d4
{[%clk 0:00:11.4]} 32. Qxd4 {[%clk 0:00:03.3]} 32... Qxd4+ {[%clk 0:00:11.6]}
33. Rxd4 {[%clk 0:00:02]} 33... Nxb6 {[%clk 0:00:12.2]} 34. Rb4 {[%clk
0:00:01.4]} 34... Nd7 {[%clk 0:00:11.7]} 35. Rxb8+ {[%clk 0:00:02.2]} 35... Nxb8
{[%clk 0:00:12.6]} 36. Kf2 {[%clk 0:00:02.7]} 36... Nc6 {[%clk 0:00:12]} 37. Ke3
{[%clk 0:00:03.1]} 37... Rd7 {[%clk 0:00:11.7]} 38. Rb1 {[%clk 0:00:02.8]} 38...
Ne5 {[%clk 0:00:10]} 39. Ke4 {[%clk 0:00:02.9]} 39... Nc4 {[%clk 0:00:10]} 40.
c6 {[%clk 0:00:03.4]} 40... Rd6 {[%clk 0:00:08.5]} 41. Rc1 {[%clk 0:00:02.6]}
41... Rxc6 {[%clk 0:00:08.2]} 42. Kd5 {[%clk 0:00:02.6]} 42... Rd6+ {[%clk
0:00:06.1]} 43. Kc5 {[%clk 0:00:03.1]} 43... Rd2 {[%clk 0:00:04.1]} 44. Rxc4
{[%clk 0:00:03.4]} 44... Rxg2 {[%clk 0:00:04.6]} 45. a5 {[%clk 0:00:03.4]} 45...
Ra2 {[%clk 0:00:04.1]} 46. Kb5 {[%clk 0:00:03.7]} 46... g5 {[%clk 0:00:04.5]}
47. Ra4 {[%clk 0:00:04.2]} 47... Rb2+ {[%clk 0:00:04.6]} 48. Kc6 {[%clk
0:00:04.8]} 48... f5 {[%clk 0:00:03.4]} 49. a6 {[%clk 0:00:04.9]} 49... Rb8
{[%clk 0:00:03.4]} 50. a7 {[%clk 0:00:05.1]} 50... Ra8 {[%clk 0:00:03.8]} 51.
Kb7 {[%clk 0:00:05.6]} 51... Rxa7+ {[%clk 0:00:03]} 52. Kxa7 {[%clk 0:00:06.5]}
52... Kf7 {[%clk 0:00:02.9]} 53. Kb6 {[%clk 0:00:06.7]} 53... Ke6 {[%clk
0:00:03.7]} 54. Kc5 {[%clk 0:00:07.3]} 54... Ke5 {[%clk 0:00:04.4]} 55. Ra8
{[%clk 0:00:04.5]} 55... Kf4 {[%clk 0:00:04.6]} 56. Rf8 {[%clk 0:00:04.5]} 56...
Kxf3 {[%clk 0:00:04.7]} 57. Rxf5+ {[%clk 0:00:04.5]} 57... Kg4 {[%clk
0:00:05.5]} 58. Re5 {[%clk 0:00:04.5]} 58... Kh4 {[%clk 0:00:06.1]} 59. Kd4
{[%clk 0:00:04.9]} 59... g4 {[%clk 0:00:06.4]} 60. Ke3 {[%clk 0:00:05.2]} 60...
Kh3 {[%clk 0:00:04.7]} 61. Rxh5+ {[%clk 0:00:05.1]} 61... Kg2 {[%clk 0:00:05.5]}
62. Kf4 {[%clk 0:00:05.5]} 62... Kh1 {[%clk 0:00:03.8]} 63. Kxg4 {[%clk
0:00:05]} 1-0